Cogmind - Beta 13 @@@ ROGUE MODE // 2024.04.19 @ 22:19:50 Player: Thaleia Result: Destroyed by H-66 Slayer with Gauss Rifle Performance ------------- Evolutions (4) 2000 Regions Visited (6) 1200 Robots Destroyed (62) 310 Value Destroyed (1700) 1700 Prototype IDs (5) 100 Alien Tech Used (0) 0 Bonus (0) 0 TOTAL SCORE: 5310 Bonus ------- None Cogmind --------- Core Integrity 0/850 Matter 56/300 Energy 100/100 System Corruption 0% Temperature Cool (0) Movement Core (1350) Ox26 Location -6/Factory Parts ------- > --- POWER (2) -------- (None) > --- PROPULSION (3) --- (None) > --- UTILITY (7) ------ Huge Storage Unit Hacking Suite > --- WEAPON (3) ------- (None) > --- INVENTORY (25) --- Large Storage Unit Advanced ECM Suite Improved Medium Armor Plating Mini Grenade Launcher Remote Datajack Peak State ------------ > --- POWER ------------ Enhanced Nuclear Core > --- PROPULSION ------- Light Treads Light Treads Medium Treads > --- UTILITY ---------- Scrap Engine High-capacity Storage Unit Core Analyzer Hardened Medium Armor Plating Hacking Suite > --- WEAPON ----------- Flak Gun Advanced Assault Cannon Mini Assault Cannon > --- INVENTORY -------- Deuterium Engine Deuterium Engine Micro Nuclear Core Light Treads Light Treads Light Treads Large Storage Unit Huge Storage Unit Advanced ECM Suite Improved Medium Armor Plating Authchip [Propulsion] Improved Assault Rifle Improved Assault Rifle Gauss Rifle Flak Gun Flak Gun Flak Gun Rocket Launcher Mini Grenade Launcher Remote Datajack [Rating: 56] Favorites ----------- Power Improved Ion Engine Engine Improved Ion Engine Power Core Micro Nuclear Core Propulsion Light Treads Treads Light Treads Leg Aluminum Leg Utility High-capacity Storage Unit Device Scrap Engine Storage High-capacity Storage Unit Processor Core Analyzer Hackware Hacking Suite Protection Hardened Light Armor Plating Weapon Flak Gun Ballistic Gun Flak Gun Ballistic Cannon Flak Cannon Launcher Rocket Launcher Special Weapon Remote Datajack Slashing Weapon Mining Claw Build | -11 -10 -9 -9 -9 -7 -6 ------- Run | Yrd Mat Mat Sto Rec Fac Fac Slots Evolved 8 | . . 2 . . 4 2 Power 1 | . . . . . . 1 Propulsion 1 | . . 1 . . . . Utility 5 | . . 1 . . 3 1 Weapon 1 | . . . . . 1 . Parts Attached 76 | 8 3 3 24 9 25 4 Power 8 | 1 . . 2 2 3 . Engine 5 | 1 . . 2 2 . . Core 3 | . . . . . 3 . Reactor . | . . . . . . . Propulsion 25 | 2 2 1 9 3 5 3 Treads 23 | . 2 1 9 3 5 3 Leg 2 | 2 . . . . . . Wheel . | . . . . . . . Hover . | . . . . . . . Flight . | . . . . . . . Utility 18 | 3 1 1 4 1 7 1 Device 6 | 2 . 1 . 1 2 . Storage 4 | 1 1 . 1 . . 1 Processor 1 | . . . . . 1 . Hackware 1 | . . . . . 1 . Protection 6 | . . . 3 . 3 . Artifact . | . . . . . . . Weapon 25 | 2 . 1 9 3 10 . Energy Gun . | . . . . . . . Energy Cannon . | . . . . . . . Ballistic Gun 16 | 2 . 1 7 2 4 . Ballistic Cannon 4 | . . . . . 4 . Launcher 2 | . . . 2 . . . Special Weapon 1 | . . . . . 1 . Impact Weapon . | . . . . . . . Slashing Weapon 2 | . . . . 1 1 . Piercing Weapon . | . . . . . . . Special Melee Weapon . | . . . . . . . Unidentified Prototypes 3 | . . . 1 . 2 . Parts Lost 23 | . . . 4 2 10 7 Power 2 | . . . . 1 1 . Propulsion 9 | . . . . 1 5 3 Utility 8 | . . . 3 . 2 3 Weapon 4 | . . . 1 . 2 1 Highest Loss Streak 6 | . . . 1 2 6 6 To Critical Strikes . | . . . . . . . Average Slot Usage (%) 91 | . 98 96 92 99 87 40 Engine 6 | . 14 11 11 10 . . Core 2 | . . . . . 6 . Treads 26 | . 9 33 33 32 22 11 Leg 1 | . 16 . . . . . Device 7 | . 14 18 3 3 9 4 Storage 9 | . 14 11 11 11 7 4 Processor 2 | . . . . . 6 5 Hackware 1 | . . . . . 4 6 Protection 9 | . . . 11 18 4 . Ballistic Gun 16 | . 28 22 20 15 11 . Ballistic Cannon 3 | . . . . . 9 6 Launcher 1 | . . . 1 5 . . Naked Turns . | . . . . . . . Heaviest Build 74 | 13 28 31 74 62 73 45 Greatest Support 68 | 20 40 60 60 60 68 60 Greatest Overweight (x) 19 | 1 9 . 1 1 19 14 Average Overweight (x) . | . . . . . . . Largest Inventory Capacity 25 | 8 15 15 20 20 20 25 Average Capacity 18 | 7 14 15 18 20 20 17 Most Carried 20 | 4 11 10 20 20 20 19 Average Carried 17 | 2 7 9 17 19 19 14 Final Capacity 25 | 8 15 15 20 20 20 25 Final Carried 20 | 4 11 10 20 19 20 5 Class Distribution -------------------- 40% | Scavenger-Mutant 32% | Gunner 27% | Mutant Dominant Class ---------------- Mutant | -10/Materials Mutant | -9/Materials Scavenger-Mutant | -9/Storage Scavenger-Mutant | -9/Recycling Gunner | -7/Factory Mutant | -6/Factory Resources | -11 -10 -9 -9 -9 -7 -6 ----------- Run | Yrd Mat Mat Sto Rec Fac Fac Matter Collected 2072 | 287 . 96 712 322 615 40 Remotely . | . . . . . . . Salvage Created 2287 | 84 . 141 894 463 659 46 Parts 152 | 6 . 9 69 22 44 2 Haulers Intercepted 4 | . . . 2 . 2 . Recyclers Shooed 5 | 1 . . 4 . . . Parts Field Recycled . | . . . . . . . Retrieved Matter . | . . . . . . . Parts Self-Destructed . | . . . . . . . Prevented . | . . . . . . . Kills | -11 -10 -9 -9 -9 -7 -6 ------- Run | Yrd Mat Mat Sto Rec Fac Fac Combat Hostiles Destroyed 41 | . . 3 16 7 13 2 Guns 34 | . . 3 16 6 9 . Cannons 6 | . . . . . 4 2 AOE 1 | . . . . 1 . . Classes Destroyed 13 | 2 . 2 4 3 2 . Worker 7 | . . . . 1 6 . Builder 2 | . . . 1 . 1 . Tunneler 1 | 1 . . . . . . Hauler 4 | . . . 2 . 2 . Recycler 6 | 1 . . 1 2 2 . Watcher 1 | . . . 1 . . . Swarmer 11 | . . . 4 1 4 2 Grunt 7 | . . 2 3 . 2 . Brawler 1 | . . . . 1 . . Sentry 16 | . . 1 9 4 2 . Demolisher 1 | . . . . 1 . . Hunter 2 | . . . . . 2 . Programmer 3 | . . . . . 3 . Best Kill Streak 5 | 1 . 2 4 5 4 2 Combat Bots Only 4 | . . 2 4 2 4 2 Max Kills in Single Turn 3 | 1 . 1 1 1 3 1 Gunslinging 1 | . . . . . 1 . Exploded 1 | . . . . 1 . . Melee . | . . . . . . . Uniques/NPCs Destroyed . | . . . . . . . Combat | -11 -10 -9 -9 -9 -7 -6 -------- Run | Yrd Mat Mat Sto Rec Fac Fac Hostile Shots Fired 546 | . . 17 122 30 236 141 Missed 145 | . . 5 34 8 63 35 Damage Taken 6064 | . . 154 1372 589 2194 1755 Core 1337 | . . 36 197 40 214 850 Absorbed by Shields . | . . . . . . . Core Remaining (%) 75 | 100 100 . . 31 69 . Volleys Fired 184 | 10 . 9 92 19 44 10 Largest 3 | 2 . 2 2 2 3 1 Hottest 144 | 40 . 43 56 56 144 48 Shots Fired 385 | 20 . 18 182 37 118 10 Gun 288 | 20 . 18 162 35 53 . Cannon 75 | . . . . . 65 10 Launcher 22 | . . . 20 2 . . Special . | . . . . . . . Kinetic 363 | 20 . 18 162 35 118 10 Thermal . | . . . . . . . Explosive 22 | . . . 20 2 . . Electromagnetic . | . . . . . . . Robot Hit Streak 20 | 10 . 13 19 20 8 5 Robot Miss Streak 9 | 2 . 1 4 2 9 4 Penetration Max . | . . . . . . . Secondary Targets 6 | . . . 2 1 3 . Max Gunslinging Chain 2 | . . . 1 1 2 . Shots Hit Robots 238 | 17 . 15 94 30 76 6 Core Hits 158 | 6 . 7 41 15 85 4 Critical Kills 1 | . . . . 1 . . Critical Parts Destroyed 1 | 1 . . . . . . Critical Strikes 3 | 1 . . . 1 1 . Destroy 2 | 1 . . . 1 . . Blast 1 | . . . . . 1 . Melee Attacks 3 | . . . . . 3 . Impact . | . . . . . . . Slashing 3 | . . . . . 3 . Piercing . | . . . . . . . Sneak Attacks . | . . . . . . . Combat Hostiles . | . . . . . . . Follow-up Attacks . | . . . . . . . Damage Inflicted 3826 | 137 . 153 1286 570 1547 133 Guns 2638 | 133 . 153 1239 434 679 . Cannons 923 | . . . . . 810 113 Explosions 128 | . . . . 128 . . Melee . | . . . . . . . Ramming 137 | 4 . . 47 8 58 20 Kinetic 3561 | 133 . 153 1239 434 1489 113 Thermal . | . . . . . . . Explosive 128 | . . . . 128 . . Electromagnetic . | . . . . . . . Impact . | . . . . . . . Slashing . | . . . . . . . Piercing . | . . . . . . . Highest Corruption 4 | . . . . . 4 . Average Corruption 3 | . . . . . 3 . Corruption Purged . | . . . . . . . Corruption Blocked . | . . . . . . . Effects 12 | . . . . . 12 . Message Errors 4 | . . . . . 4 . Matter Fused 1 | . . . . . 1 . Heat Flow Errors 2 | . . . . . 2 . Energy Discharges 3 | . . . . . 3 . Alerts 2 | . . . . . 2 . Overload Shots . | . . . . . . . Overflow Damage 23 | . . . 23 . . . Projectiles . | . . . . . . . Explosions 23 | . . . 23 . . . Melee . | . . . . . . . Knockbacks 16 | . . . . . 13 3 Impact . | . . . . . . . Kinetic 16 | . . . . . 13 3 Secondary . | . . . . . . . Self-Inflicted Damage 244 | . . . 147 92 . 5 Shots 10 | . . . 8 2 . . Rammed 34 | . . . 10 . 9 15 Targets Rammed 37 | 1 . . 10 1 10 15 Kicked 1 | 1 . . . . . . Crushed 2 | . . . . 1 1 . Highest Temperature 539 | . . 6 66 24 539 . Average Temperature 75 | . . 3 17 9 124 . Received Heat Transfer 714 | . . 63 291 36 324 . Effects 14 | . . . . . 14 . Shutdowns 1 | . . . . . 1 . Energy Bleed 1 | . . . . . 1 . Interference 3 | . . . . . 3 . Matter Decay 6 | . . . . . 6 . Short Circuit 1 | . . . . . 1 . Damage (minor) 1 | . . . . . 1 . Damage (major) 1 | . . . . . 1 . Siege Activations . | . . . . . . . Robots Corrupted . | . . . . . . . Combat Hostiles . | . . . . . . . Parts Fried . | . . . . . . . Impact Corruptions . | . . . . . . . Robots Melted . | . . . . . . . Combat Hostiles . | . . . . . . . Parts Melted . | . . . . . . . Heat Transferred . | . . . . . . . Parts Sabotaged . | . . . . . . . Parts Stolen . | . . . . . . . Parts Stripped . | . . . . . . . Power Chain Reactions . | . . . . . . . Alert | -11 -10 -9 -9 -9 -7 -6 ------- Run | Yrd Mat Mat Sto Rec Fac Fac Peak Influence 271 | 10 6 110 271 60 142 47 Initial 59 | . 6 . 46 59 . . Average 57 | 2 5 38 120 20 51 14 Maximum Alert Level 1 | . . . 1 . . . Low Security (%) 96 | 100 100 100 85 100 100 100 Level 1 3 | . . . 14 . . . Level 2 . | . . . . . . . Level 3 . | . . . . . . . Level 4 . | . . . . . . . Level 5 . | . . . . . . . High Security . | . . . . . . . Max Security . | . . . . . . . Squads Dispatched 6 | . . 1 . . 5 . Investigation . | . . . . . . . Extermination 3 | . . . . . 3 . Reinforcement 3 | . . 1 . . 2 . Assault . | . . . . . . . Garrison . | . . . . . . . Intercept . | . . . . . . . Searches Triggered . | . . . . . . . Construction Impeded . | . . . . . . . Haulers Reinforced 2 | . . . . . 2 . Active Scanning Responses . | . . . . . . . Cargo Convoy Interrupts . | . . . . . . . Stealth | -11 -10 -9 -9 -9 -7 -6 --------- Run | Yrd Mat Mat Sto Rec Fac Fac Distress Signals 5 | . . . 3 . 2 . Communications Jammed . | . . . . . . . Distress Signals . | . . . . . . . Times Spotted 61 | . 2 4 21 8 21 5 Peak Tracking Total 4 | . 1 2 4 3 4 4 Tactical Retreats 4 | . . . 1 1 1 1 Traps | -11 -10 -9 -9 -9 -7 -6 ------- Run | Yrd Mat Mat Sto Rec Fac Fac Traps Triggered 1 | . . . . . 1 . Indirectly . | . . . . . . . Trap Hack Attempts . | . . . . . . . Triggered . | . . . . . . . Disarmed . | . . . . . . . Reprogrammed . | . . . . . . . Reused . | . . . . . . . Traps Extracted . | . . . . . . . Installed . | . . . . . . . Triggered . | . . . . . . . Machines | -11 -10 -9 -9 -9 -7 -6 ---------- Run | Yrd Mat Mat Sto Rec Fac Fac Machines Disabled 1 | . . . 1 . . . Max in Single Turn 1 | . . . 1 . . . Machines Repaired . | . . . . . . . Machines Dismantled . | . . . . . . . Machines Sabotaged . | . . . . . . . Overloaded Fab Kills . | . . . . . . . Hacking | -11 -10 -9 -9 -9 -7 -6 --------- Run | Yrd Mat Mat Sto Rec Fac Fac Machines Accessed 11 | . 2 . 3 4 2 . Terminals 11 | . 2 . 3 4 2 . Fabricators . | . . . . . . . Repair Stations . | . . . . . . . Recycling Units . | . . . . . . . Scanalyzers . | . . . . . . . Garrison Access . | . . . . . . . Total Hacks 22 | . 3 . 7 7 5 . Successful 11 | . 2 . 3 3 3 . Failed 11 | . 1 . 4 4 2 . Catastrophic 2 | . . . 1 . 1 . Database Lockouts . | . . . . . . . Manual 4 | . . . 1 1 2 . Terminals 22 | . 3 . 7 7 5 . Fabricators . | . . . . . . . Repair Stations . | . . . . . . . Recycling Units . | . . . . . . . Scanalyzers . | . . . . . . . Garrison Access . | . . . . . . . Terminal Hacks 11 | . 2 . 3 3 3 . Record 2 | . . . . 1 1 . Prototype ID Bank 1 | . 1 . . . . . Open Door 1 | . . . 1 . . . Emergency Access Points 1 | . 1 . . . . . Alert Level 1 | . . . . 1 . . Locate Traps 1 | . . . 1 . . . Dispatch Records 1 | . . . . 1 . . Recall Extermination 1 | . . . . . 1 . Zone Layout 2 | . . . 1 . 1 . Fabricator Hacks . | . . . . . . . Repair Station Hacks . | . . . . . . . Recycling Unit Hacks . | . . . . . . . Scanalyzer . | . . . . . . . Garrison Access Hacks . | . . . . . . . Unauthorized Hacks . | . . . . . . . Terminals . | . . . . . . . Fabricators . | . . . . . . . Repair Stations . | . . . . . . . Recycling Units . | . . . . . . . Scanalyzers . | . . . . . . . Garrison Access . | . . . . . . . Data Cores Recovered . | . . . . . . . Used . | . . . . . . . Hacking Detections 8 | . 1 . 3 2 2 . Full Trace Events 1 | . . . 1 . . . Feedback Events . | . . . . . . . Feedback Blocked . | . . . . . . . Robot Schematics Acquired . | . . . . . . . Robots Built . | . . . . . . . Authchips . | . . . . . . . Time . | . . . . . . . Total Robot Build Rating . | . . . . . . . Part Schematics Acquired . | . . . . . . . Parts Built . | . . . . . . . Authchips . | . . . . . . . Time . | . . . . . . . Total Part Build Rating . | . . . . . . . Parts Repaired . | . . . . . . . Time . | . . . . . . . Parts Recycled . | . . . . . . . Recycled Matter . | . . . . . . . Retrieved Matter . | . . . . . . . Retrieved Components . | . . . . . . . Parts Scanalyzed . | . . . . . . . Part Schematics Acquired . | . . . . . . . Parts Damaged . | . . . . . . . Bothacking | -11 -10 -9 -9 -9 -7 -6 ------------ Run | Yrd Mat Mat Sto Rec Fac Fac Used RIF Installer . | . . . . . . . Robots Hacked . | . . . . . . . Non-combat . | . . . . . . . Combat . | . . . . . . . Robot Hacks Applied . | . . . . . . . Relay Couplers Released . | . . . . . . . Fabnet Peak Effective % . | . . . . . . . Robots Rewired . | . . . . . . . Allies Hacked . | . . . . . . . Hacks Repelled . | . . . . . . . Allies | -11 -10 -9 -9 -9 -7 -6 -------- Run | Yrd Mat Mat Sto Rec Fac Fac Total Allies . | . . . . . . . Largest Group . | . . . . . . . Highest-Rated Group . | . . . . . . . Highest-Rated Ally . | . . . . . . . Total Orders . | . . . . . . . Ally Attacks . | . . . . . . . Total Damage . | . . . . . . . Kills . | . . . . . . . Allies Corrupted . | . . . . . . . Allies Melted . | . . . . . . . Intel | -11 -10 -9 -9 -9 -7 -6 ------- Run | Yrd Mat Mat Sto Rec Fac Fac Robot Analysis Total . | . . . . . . . Derelict Logs Recovered . | . . . . . . . Drone Launches . | . . . . . . . Drone Recoveries . | . . . . . . . Exploration | -11 -10 -9 -9 -9 -7 -6 ------------- Run | Yrd Mat Mat Sto Rec Fac Fac Turns Passed 7206 | 147 433 269 1914 1678 2510 255 Spaces Moved 3361 | 90 234 139 823 766 1200 109 Core 33 | 7 5 . . . 3 18 Treads 3107 | . 91 139 823 766 1197 91 Legs 221 | 83 138 . . . . . Wheels . | . . . . . . . Hover . | . . . . . . . Flight . | . . . . . . . Fastest Speed 50 | 50 120 160 160 160 160 100 Average Speed 187 | 115 177 160 183 206 189 176 Slowest Speed 1000 | 120 500 160 240 240 1000 750 Overloaded Moves . | . . . . . . . Propulsion Burnouts . | . . . . . . . Robots Hopped . | . . . . . . . Cave-ins Triggered 1 | . . . 1 . . . Exploration Rate (%) 32 | 4 34 12 52 96 25 4 Regions Visited 6 Branch Regions 2 Pre-discovered Areas . | . . . . . . . Known Exits Taken . | . . . . . . . Unknown Exits Taken 6 | 1 1 1 1 1 1 . Scrap Searched . | . . . . . . . Spaces Dug 89 | . . . 89 . . . Terrain Destroyed 143 | . . . 106 25 10 2 Melee . | . . . . . . . Projectile 12 | . . . . . 10 2 AOE 131 | . . . 106 25 . . Terrain Rammed . | . . . . . . . Walls Destroyed . | . . . . . . . Machines Disabled . | . . . . . . . Actions | -11 -10 -9 -9 -9 -7 -6 --------- Run | Yrd Mat Mat Sto Rec Fac Fac Total 3891 | 112 254 171 1045 826 1342 141 Wait 117 | . . 17 63 14 22 1 Move 3354 | 89 233 138 821 765 1199 109 Hop . | . . . . . . . Pick Up 50 | 4 10 2 13 5 14 2 Fast Attach 27 | 7 2 . 6 1 10 1 Attach 10 | . . 2 1 2 2 3 Detach 3 | . 2 . 1 . . . Swap 39 | 1 1 1 17 6 13 . Drop 61 | . 6 2 20 8 25 . Fire 184 | 10 . 9 92 19 44 10 Melee 3 | . . . . . 3 . Ram 15 | . . . . . . 15 Kick 1 | 1 . . . . . . Crush 21 | . . . 10 1 10 . Escape Stasis 1 | . . . 1 . . . Rewire 5 | . . . . 5 . . Trap . | . . . . . . . Miscellaneous . | . . . . . . . Route ------- -11/Scrapyard -10/Materials (discovered 2 exits: [*Mat] / [*Min]) -9/Materials -9/Storage (discovered 2 exits: [*Mat] / *Rec) -9/Recycling -7/Factory -6/Factory History --------- Turn | Location | Event 5 | -11/Scrapyard | Discovered new exit (range 16) 148 | -11/Scrapyard | Entered Materials 310 | -10/Materials | Build established: Mutant 335 | -10/Materials | Discovered new exit (range 14) 555 | -10/Materials | Discovered new exit (range 10) 581 | -10/Materials | Entered another Materials area 581 | -9/Materials | Evolved 2 slots: Propulsion x1, Utility x1 710 | -9/Materials | Discovered new exit (range 6) 850 | -9/Materials | Entered Storage 1254 | -9/Storage | Build established: Scavenger-Mutant 1346 | -9/Storage | Discovered new exit (range 10) 1697 | -9/Storage | Crushed by falling debris 1698 | -9/Storage | Core integrity fell below 50% 2317 | -9/Storage | Discovered new exit (range 5) 2756 | -9/Storage | Used back door to open Recycling access 2764 | -9/Storage | Entered Recycling 2788 | -9/Recycling | Found Scrap Engine 4155 | -9/Recycling | Build established: Mutant 4375 | -9/Recycling | Discovered new exit (range 16) 4442 | -9/Recycling | Entered Factory 4442 | -7/Factory | Evolved 4 slots: Utility x3, Weapon x1 4814 | -7/Factory | Build established: Gunner 6421 | -7/Factory | Discovered new exit (range 16) 6952 | -7/Factory | Entered another Factory area 6952 | -6/Factory | Evolved 2 slots: Power x1, Utility x1 6970 | -6/Factory | Lost 6 parts (1p2n1u2w) 7154 | -6/Factory | Core integrity fell below 50% 7178 | -6/Factory | Core integrity fell below 20% 7197 | -6/Factory | Lost 6 parts (3n3u) 7205 | -6/Factory | Build established: Mutant 7207 | -6/Factory | Destroyed by H-66 Slayer with Gauss Rifle Last Messages --------------- 07167_ Mni. Assault Cannon broken. 07167_ Destabilizing: Short circuit. 07171_ Acquired 5 matter. 07171_ Penetrated by Slug. 07172_ Slammed into H-66 Slayer. 07177_ Penetrated by Slug. 07177_ S-27 Virus destroyed. 07177_ Penetrated by Slug. 07178_ Slammed into H-66 Slayer. 07181_ Destabilizing: Core damaged (-42). 07182_ Slammed into H-66 Slayer. 07184_ Slug penetrates Manufacturing Mainframe. 07184_ Slug penetrates Wall. 07184_ Acquired Huge Storage Unit. 07186_ Slammed into H-66 Slayer. 07189_ Penetrated by Slug. 07200_ Slammed into H-66 Slayer. 07201_ Penetrated by Slug. 07201_ Broken Mni. Assault Cannon destroyed. 07207_ Penetrated by Slug. Map ----- +----------------------------------------------------+ | ?????????????????????????????????????????? | | ?????????????????????????????????????????? | | ?????????????????????????????????????????? | | ?????????????????????????????????????????? | | ?????????????????????????????????????????? | | ?????????????????????????????????????????? | | ??????????????????????????? ?????????????? | | ??????????????????????????? ?????????????? | | ??????????????????????????? ?????????????? | | ??????????????????????????? ?????????????? | | ?????????????????????##???? ?????????????? | | ????????????????????? ???? ?????????????? | | ?????????????????????# ???? ?????????????? | | ?????????????????????# ???# #????????????? | | ?????????????????????# ???# #????????????? | | ????????????##########+#### #????????????? | | ????????????## # #????????????? | | ????????????#" # #????????????? | | ?????????????# == [*# #????????????? | | ?????????????# == **[# #?######?????? | | ?????????????# =!= [*[# #?] """?????? | | ?????????????# %][[=# # ""S""????? | | ?????????????# """"%"" ! # # "" "" #??? | | ????????????????"""" "" +!+ #??? | | ?????????????# """" """ # # """ """ #??? | | ?????????????# """" """"@# # """ ""?????? | | ?????????????# h# #?""" "??????? | | ?????????????#= =%# #? ??????? | | ?????????????#######+#+#### #######??????? | | ??????????????+ #??????????? | | ?????????????????# ############ | | ?????????????????# # # | | ?????????????????# # # | | ?????????????????# # # | | ?????????????????# # # | | ?????????????????# # # | | ?????????????????# # # | | ?????????????????# # # | | ?????????????????+ " # | | ?????????????????# # # | | ?????????????????# # # | | ?????????????????# ###### # # | | ?????????????????# #????# # # | | ?????????????????# #????# # # | | ?????????????????# #????# # # | | ?????????????????# #????# # # | | ?????????????????# #????# ############ | | ????"????????????# #????# #??????????? | | ??? ??????????# ######+###????????? | | ?? #####+### # !#????????? | +----------------------------------------------------+ Best States ------------- Heat Dissipation 37 Energy Generation 17 Energy Capacity 300 Matter Stores 300 Matter Capacity 300 Sight Range 16 Terrain Scan Range 16 Terrain Scan Density 10 ECM Strength 1 Armor Coverage 300 Evasion (%) 55 Core Analysis 6 Recoil Reduction 3 Offensive Hacking 10 Authchip Count 1 Item Schematics ----------------- None Robot Schematics ------------------ None Fabricated ------------ Nothing Alien Tech Used ----------------- None Achievements -------------- GoHome() \\IAMDERELICT Challenges ------------ None Game ------ Seed AlphaTrapDetector Manual? 0 Play Time 00:41:34 Cumulative 12.2 hours Start 2024.04.19 @ 21:37:16 End 2024.04.19 @ 22:19:50 Sessions 1 Manual Loads 0 Difficulty Rogue Special Mode None Game No. 31 Rogue 31 Adventurer 0 Explorer 0 Win Type - Total 0 Types 0/0/0/0/0/0/0/0/0 Lore% 8 Gallery% 16 Achievement% 17 Wizard Run 0 Options --------- Layout 1 ASCII 0 Keyboard 1 Movement Arrows Keybinds 0 Fullscreen 2 Font 32/Tamsyn Map View 50x40 Zoom Use 0% Tactical HUD 1 Map Filters NONE Filters NONE Steam 1 RUN: bd711618-64bb-46f8-a1cf-d2e416b5cfe5